Cogmind - Beta 14 @@@ ROGUE MODE // 2024.08.24 @ 14:13:48 Player: nowtakenusername Result: Destroyed by B-75 Beast with Magnetic Acceleration Cannon Performance ------------- Evolutions (3) 1500 Regions Visited (6) 1200 Robots Destroyed (162) 810 Value Destroyed (5188) 5188 Prototype IDs (10) 200 Alien Tech Used (0) 0 Bonus (596) 596 TOTAL SCORE: 9494 Bonus ------- High Alert Combat Kills 576 Follower Combat Kills 20 Cogmind --------- Core Integrity 0/700 Matter 269/300 Energy 160/160 System Corruption 11% Temperature Warning (332) Movement Treading (225) Ox1 Location -7/Lower Caves Parts ------- > --- POWER (1) -------- Light Nuclear Core > --- PROPULSION (4) --- Advanced Treads Carbon-fiber Leg (fused) Armored Huge Wheel > --- UTILITY (5) ------ Improved Cooling System Large Storage Unit Improved Terrain Scan Processor Recoil Stabilizer Hacking Suite > --- WEAPON (3) ------- Improved Spread Laser Mini Assault Cannon > --- INVENTORY (15) --- Antigrav System Cryofiber Web Coolant Injector Kinecellerator Actuator Array Improved Utility Shielding Hardlight Generator Improved Shield Generator Hacking Suite Hacking Suite System Shield System Shield System Restoration Module System Restoration Module Improved Field Recycling Unit (95) Peak State ------------ > --- POWER ------------ Enhanced Nuclear Core > --- PROPULSION ------- Armored Huge Wheel Armored Huge Wheel > --- UTILITY ---------- Large Storage Unit Improved Sensor Array Improved Sensor Array Improved Signal Interpreter Hacking Suite > --- WEAPON ----------- Improved Spread Laser Improved Spread Laser Mini Assault Cannon > --- INVENTORY -------- Improved Deuterium Engine Improved Titanium Leg Antigrav System Cryofiber Web Recoil Stabilizer Kinecellerator Hardened Medium Armor Plating Layered Light Armor Plating Hardlight Generator Improved Shield Generator Hacking Suite System Shield System Shield System Restoration Module Improved Field Recycling Unit [Rating: 54] Favorites ----------- Power Improved Deuterium Engine Engine Improved Deuterium Engine Power Core Enhanced Nuclear Core Propulsion Carbon-fiber Leg Treads Light Treads Leg Carbon-fiber Leg Wheel Armored Huge Wheel Hover Unit Improved Hover Unit Utility Large Storage Unit Device Structural Scanner Storage Large Storage Unit Processor Improved Signal Interpreter Hackware Hacking Suite Protection Hardened Medium Armor Plating Weapon Minigun Energy Gun Spread Laser Ballistic Gun Minigun Ballistic Cannon Mini Assault Cannon Launcher Advanced EMP Blaster Impact Weapon Great Maul Build | -11 -10 -9 -8 -7 -7 -7 ------- Run | Yrd Mat Mat Mat Fac Low Low Slots Evolved 6 | . . 2 2 2 . . Power . | . . . . . . . Propulsion 2 | . . 1 1 . . . Utility 3 | . . 1 . 2 . . Weapon 1 | . . . 1 . . . Parts Attached 167 | 7 11 36 36 59 18 . Power 20 | 1 1 5 3 8 2 . Engine 15 | 1 1 5 2 5 1 . Core 5 | . . . 1 3 1 . Reactor . | . . . . . . . Propulsion 55 | 3 3 14 10 20 5 . Treads 10 | 1 2 6 . . 1 . Leg 40 | 2 1 8 10 16 3 . Wheel 3 | . . . . 2 1 . Hover 2 | . . . . 2 . . Flight . | . . . . . . . Utility 48 | 1 2 8 11 19 7 . Device 18 | . 1 2 3 7 5 . Storage 5 | 1 . 2 2 . . . Processor 4 | . 1 . . 2 1 . Hackware 1 | . . . . 1 . . Protection 20 | . . 4 6 9 1 . Artifact . | . . . . . . . Weapon 44 | 2 5 9 12 12 4 . Energy Gun 23 | . 3 8 5 4 3 . Energy Cannon . | . . . . . . . Ballistic Gun 14 | 2 2 1 2 7 . . Ballistic Cannon 4 | . . . 2 1 1 . Launcher 1 | . . . 1 . . . Special Weapon . | . . . . . . . Impact Weapon 2 | . . . 2 . . . Slashing Weapon . | . . . . . . . Piercing Weapon . | . . . . . . . Special Melee Weapon . | . . . . . . . Unidentified Prototypes 7 | . . 2 1 4 . . Corrupted Parts 1 | . . . 1 . . . System Corruption 6 | . . . 6 . . . Parts Lost 44 | . 4 7 9 13 11 . Power 5 | . 1 . . 2 2 . Propulsion 14 | . 2 4 1 5 2 . Utility 14 | . . 2 4 3 5 . Weapon 11 | . 1 1 4 3 2 . Highest Loss Streak 7 | . 2 4 3 5 7 . To Critical Strikes 1 | . . 1 . . . . Average Slot Usage (%) 94 | . 97 97 94 96 81 84 Engine 7 | . 13 11 8 6 4 . Treads 3 | . 8 15 . . 1 7 Leg 23 | . 19 15 35 27 9 7 Wheel 1 | . . . . . 8 7 Device 11 | . 9 12 8 12 11 15 Storage 8 | . 14 11 9 7 7 7 Processor 4 | . 3 . . 6 4 7 Hackware 1 | . . . . 1 7 7 Protection 6 | . . 9 8 6 1 . Energy Gun 7 | . 7 18 13 1 13 7 Ballistic Gun 10 | . 18 3 3 17 . . Ballistic Cannon 2 | . . . 3 2 6 7 Peak Build Rating 54 | 6 8 15 34 54 54 46 Average Rating 33 | 4 7 13 26 43 46 46 On Entrance 23 | . 6 8 15 34 54 46 Naked Turns . | . . . . . . . Heaviest Build 61 | 13 15 29 51 61 51 36 Greatest Support 76 | 20 20 40 62 76 56 22 Greatest Overweight (x) 5 | . 3 2 1 5 2 1 Average Overweight (x) . | . . . . . . 1 Largest Inventory Capacity 15 | 8 8 10 15 15 15 15 Average Capacity 12 | 6 8 9 10 15 15 15 Most Carried 15 | 5 8 10 15 15 15 15 Average Carried 12 | 2 7 9 10 14 13 15 Final Capacity 15 | 8 8 10 15 15 15 15 Final Carried 15 | 5 8 10 15 15 15 15 Class Distribution -------------------- 41% | Skirmisher 33% | Mutant 14% | Scavenger-Mutant 8% | Tank Dominant Class ---------------- Mutant | -10/Materials Scavenger-Mutant | -9/Materials Tank | -8/Materials Skirmisher | -7/Factory Skirmisher | -7/Lower Caves Mutant | -7/Lower Caves Resources | -11 -10 -9 -8 -7 -7 -7 ----------- Run | Yrd Mat Mat Mat Fac Low Low Matter Collected 3542 | 254 212 487 612 1517 460 . Remotely . | . . . . . . . Salvage Created 5155 | . 348 1398 1249 1672 488 . Parts 316 | . 28 110 64 98 16 . Haulers Intercepted 11 | . . 4 5 2 . . Recyclers Shooed 3 | . . 2 . 1 . . Parts Field Recycled 58 | . . . . 58 . . Retrieved Matter 589 | . . . . 589 . . Parts Self-Destructed 21 | . . . . . 21 . Prevented 2 | . . . . . 2 . Kills | -11 -10 -9 -8 -7 -7 -7 ------- Run | Yrd Mat Mat Mat Fac Low Low Combat Hostiles Destroyed 128 | . 16 33 28 37 14 . Guns 113 | . 16 33 26 28 10 . Cannons 11 | . . . . 7 4 . AOE 4 | . . . 2 2 . . Classes Destroyed 11 | . 3 6 1 1 . . Worker 6 | . . 2 1 3 . . Builder 4 | . . 2 . 2 . . Hauler 11 | . . 4 5 2 . . Watcher 13 | . 3 3 3 4 . . Swarmer 36 | . 12 6 8 5 5 . Grunt 51 | . 4 16 13 12 6 . Brawler 4 | . . 1 1 . 2 . Duelist 2 | . . 1 . 1 . . Sentry 21 | . . 9 5 6 1 . Hunter 4 | . . . 1 3 . . Programmer 10 | . . . . 10 . . Best Kill Streak 6 | . 5 6 4 6 4 . Combat Bots Only 6 | . 5 6 4 6 4 . Max Kills in Single Turn 3 | . 1 3 2 2 2 . Gunslinging 1 | . . 1 . . . . Exploded 1 | . . . 1 1 . . Melee . | . . . . . . . Uniques/NPCs Destroyed . | . . . . . . . Combat | -11 -10 -9 -8 -7 -7 -7 -------- Run | Yrd Mat Mat Mat Fac Low Low Hostile Shots Fired 1046 | . 82 172 195 474 100 23 Missed 328 | . 17 51 64 168 22 6 Damage Taken 10194 | . 566 1570 2520 3804 1522 212 Core 1491 | . 81 190 488 359 308 65 Absorbed by Shields . | . . . . . . . Regen/Repaired (Parts) 1096 | . 24 . 279 793 . . Core Remaining (%) 57 | 100 67 52 11 . . . Volleys Fired 420 | . 49 85 100 150 36 . Largest 3 | . 2 2 3 3 3 . Hottest 225 | . 85 130 175 109 225 . Shots Fired 882 | . 98 162 199 354 69 . Gun 773 | . 98 162 169 300 44 . Cannon 106 | . . . 27 54 25 . Launcher 3 | . . . 3 . . . Special . | . . . . . . . Kinetic 520 | . 81 28 57 329 25 . Thermal 282 | . 17 102 94 25 44 . Explosive . | . . . . . . . Electromagnetic 80 | . . 32 48 . . . Robot Hit Streak 17 | . 7 10 13 17 9 . Robot Miss Streak 9 | . 6 6 8 9 7 . Penetration Max . | . . . . . . . Secondary Targets 12 | . . 6 1 5 . . Max Gunslinging Chain 1 | . . 1 1 1 . . Shots Hit Robots 628 | . 50 135 155 235 53 . Core Hits 550 | . 42 151 144 154 59 . Critical Kills 3 | . 2 . . 1 . . Critical Parts Destroyed 1 | . 1 . . . . . Critical Strikes 9 | . 3 . . 5 1 . Burn 2 | . . . . 2 . . Destroy 4 | . 3 . . 1 . . Blast 3 | . . . . 2 1 . Melee Attacks 3 | . . . 3 . . . Impact 3 | . . . 3 . . . Slashing . | . . . . . . . Piercing . | . . . . . . . Sneak Attacks . | . . . . . . . Combat Hostiles . | . . . . . . . Follow-up Attacks . | . . . . . . . Damage Inflicted 11431 | . 526 2066 2653 5101 1085 . Guns 8614 | . 518 1916 2056 3433 691 . Cannons 1752 | . . . 236 1139 377 . Explosions 825 | . . 143 306 376 . . Melee 50 | . . . 50 . . . Ramming 190 | . 8 7 5 153 17 . Kinetic 5634 | . 304 217 469 4267 377 . Thermal 4210 | . 214 1451 1309 545 691 . Explosive . | . . . . . . . Electromagnetic 1347 | . . 391 820 136 . . Impact 50 | . . . 50 . . . Slashing . | . . . . . . . Piercing . | . . . . . . . Highest Corruption 11 | . . 2 7 4 11 11 Average Corruption 4 | . . 1 2 3 10 11 Corruption Purged 4 | . . . . 4 . . Corruption Blocked . | . . . . . . . Effects 132 | . . 7 4 55 65 1 Message Errors 35 | . . . 2 15 18 . Matter Fused 30 | . . 1 . 17 12 . Heat Flow Errors 14 | . . 1 . 3 9 1 Energy Discharges 19 | . . 2 . 8 9 . Parts Fused 1 | . . . . . 1 . Data Loss (minor) 19 | . . 2 2 5 10 . Data Loss (major) 4 | . . . . 2 2 . Misfires 5 | . . 1 . 2 2 . Weapon Failures 5 | . . . . 3 2 . Overload Shots . | . . . . . . . Overflow Damage 254 | . . . . 241 13 . Projectiles 67 | . . . . 54 13 . Explosions 187 | . . . . 187 . . Melee . | . . . . . . . Knockbacks 26 | . . . 7 16 3 . Impact 3 | . . . . 3 . . Kinetic 21 | . . . 7 11 3 . Secondary 2 | . . . . 2 . . Self-Inflicted Damage 310 | . . 12 168 124 6 . Shots 8 | . . 1 5 2 . . Rammed 19 | . . 4 . 7 8 . Targets Rammed 34 | . 1 4 2 19 8 . Kicked 15 | . 1 . 2 12 . . Crushed . | . . . . . . . Highest Temperature 584 | . 146 442 552 280 584 136 Average Temperature 117 | . 42 114 142 64 220 82 Received Heat Transfer 2759 | . 114 504 819 621 369 332 Effects 48 | . . 7 16 3 22 . Shutdowns 7 | . . 2 2 . 3 . Energy Bleed 8 | . . 2 1 1 4 . Interference 15 | . . 1 6 2 6 . Matter Decay 3 | . . 1 2 . . . Short Circuit 2 | . . . . . 2 . Damage (minor) 2 | . . . 2 . . . Damage (major) 8 | . . 1 . . 7 . Damage (core) 3 | . . . 3 . . . Siege Activations . | . . . . . . . Robots Corrupted . | . . . . . . . Combat Hostiles . | . . . . . . . Parts Fried 5 | . . . 5 . . . Impact Corruptions 2 | . . . . 2 . . Robots Melted . | . . . . . . . Combat Hostiles . | . . . . . . . Parts Melted 3 | . . 2 . 1 . . Heat Transferred 5006 | . 260 1835 1565 766 580 . Parts Sabotaged . | . . . . . . . Parts Stolen . | . . . . . . . Parts Stripped . | . . . . . . . Power Chain Reactions 7 | . . 2 5 . . . Alert | -11 -10 -9 -8 -7 -7 -7 ------- Run | Yrd Mat Mat Mat Fac Low Low Peak Influence 948 | . 339 617 789 948 . . Initial 358 | . . 93 260 358 . . Average 350 | . 213 356 539 319 . . Maximum Alert Level 3 | . 1 2 3 3 . . Low Security (%) 29 | 100 38 14 . 41 . . Level 1 31 | . 61 37 22 27 . . Level 2 30 | . . 48 59 22 . . Level 3 7 | . . . 18 8 . . Level 4 . | . . . . . . . Level 5 . | . . . . . . . High Security . | . . . . . . . Max Security . | . . . . . . . Squads Dispatched 31 | . 2 6 5 18 . . Investigation 10 | . 1 3 . 6 . . Extermination 7 | . . . . 7 . . Reinforcement 11 | . 1 3 3 4 . . Assault 2 | . . . 1 1 . . Garrison 1 | . . . 1 . . . Intercept . | . . . . . . . Searches Triggered . | . . . . . . . Construction Impeded 2 | . . 1 . 1 . . Haulers Reinforced . | . . . . . . . Active Scanning Responses . | . . . . . . . Cargo Convoy Interrupts . | . . . . . . . Stealth | -11 -10 -9 -8 -7 -7 -7 --------- Run | Yrd Mat Mat Mat Fac Low Low Distress Signals 9 | . 1 2 2 4 . . Communications Jammed . | . . . . . . . Distress Signals . | . . . . . . . Times Spotted 214 | . 26 48 50 70 19 1 Peak Tracking Total 9 | . 5 6 9 7 5 1 Tactical Retreats 20 | . 4 2 4 8 2 . Traps | -11 -10 -9 -8 -7 -7 -7 ------- Run | Yrd Mat Mat Mat Fac Low Low Traps Triggered 10 | . 2 3 2 3 . . Indirectly . | . . . . . . . Trap Hack Attempts . | . . . . . . . Triggered . | . . . . . . . Disarmed 5 | . 5 . . . . . Reprogrammed . | . . . . . . . Reused . | . . . . . . . Traps Extracted . | . . . . . . . Installed . | . . . . . . . Triggered 2 | . . . . . 2 . Machines | -11 -10 -9 -8 -7 -7 -7 ---------- Run | Yrd Mat Mat Mat Fac Low Low Machines Disabled 8 | . . . . 8 . . Max in Single Turn 4 | . . . . 4 . . Garrison Access 3 | . . . 1 2 . . Machines Repaired . | . . . . . . . Machines Dismantled . | . . . . . . . Machines Sabotaged . | . . . . . . . Overloaded Fab Kills . | . . . . . . . Hacking | -11 -10 -9 -8 -7 -7 -7 --------- Run | Yrd Mat Mat Mat Fac Low Low Machines Accessed 53 | . 7 10 8 28 . . Terminals 35 | . 5 9 5 16 . . Fabricators 4 | . . . . 4 . . Repair Stations 5 | . 1 . 1 3 . . Recycling Units 2 | . 1 . . 1 . . Scanalyzers 4 | . . 1 1 2 . . Garrison Access 3 | . . . 1 2 . . Total Hacks 161 | . 19 28 31 83 . . Successful 91 | . 11 15 17 48 . . Failed 68 | . 8 12 13 35 . . Catastrophic 16 | . 1 3 3 9 . . Database Lockouts 2 | . . 1 1 . . . Manual 78 | . 12 21 19 26 . . Terminals 102 | . 16 25 18 43 . . Fabricators 9 | . . . . 9 . . Repair Stations 30 | . 2 . 8 20 . . Recycling Units 2 | . 1 . . 1 . . Scanalyzers 15 | . . 3 4 8 . . Garrison Access 3 | . . . 1 2 . . Terminal Hacks 26 | . 4 8 4 10 . . Record 8 | . . 3 2 3 . . Part Schematic 4 | . . 1 2 1 . . Prototype ID Bank 2 | . 1 1 . . . . Open DSF 1 | . . . . 1 . . Level Access Points 1 | . 1 . . . . . Repair Station Index 1 | . . . . 1 . . Alert Level 1 | . . 1 . . . . Unreport Threat 2 | . . . . 2 . . Locate Traps 2 | . . . . 2 . . Disarm Traps 1 | . 1 . . . . . Dispatch Records 1 | . . 1 . . . . Recall Investigation 1 | . . 1 . . . . Hauler Manifests 1 | . 1 . . . . . Fabricator Hacks 5 | . . . . 5 . . Network Status 1 | . . . . 1 . . Load Schematic 2 | . . . . 2 . . Build 2 | . . . . 2 . . Repair Station Hacks 26 | . 2 . 8 16 . . Scan Component 13 | . 1 . 4 8 . . Repair 13 | . 1 . 4 8 . . Recycling Unit Hacks . | . . . . . . . Scanalyzer 11 | . . 2 2 7 . . Insert Component 5 | . . 1 1 3 . . Analyze 6 | . . 1 1 4 . . Garrison Access Hacks 3 | . . . 1 2 . . Seal Access 3 | . . . 1 2 . . Unauthorized Hacks 20 | . 5 5 2 8 . . Terminals 20 | . 5 5 2 8 . . Assimilate 1 | . 1 . . . . . Botnet 19 | . 4 5 2 8 . . Fabricators . | . . . . . . . Repair Stations . | . . . . . . . Recycling Units . | . . . . . . . Scanalyzers . | . . . . . . . Garrison Access . | . . . . . . . Data Cores Recovered . | . . . . . . . Used . | . . . . . . . Hacking Detections 47 | . 6 9 7 25 . . Full Trace Events 15 | . 2 6 1 6 . . Feedback Events 1 | . . . . 1 . . Corruption 1 | . . . . 1 . . Feedback Blocked . | . . . . . . . Robot Schematics Acquired . | . . . . . . . Robots Built . | . . . . . . . Authchips . | . . . . . . . Time . | . . . . . . . Total Robot Build Rating . | . . . . . . . Part Schematics Acquired 9 | . . 2 3 4 . . Parts Built 3 | . . . . 3 . . Authchips . | . . . . . . . Time 109 | . . . . 109 . . Total Part Build Rating 9 | . . . . 9 . . Parts Repaired 13 | . 1 . 4 8 . . Time 482 | . 32 . 146 304 . . Parts Recycled . | . . . . . . . Recycled Matter . | . . . . . . . Retrieved Matter . | . . . . . . . Retrieved Components . | . . . . . . . Parts Scanalyzed 5 | . . 1 1 3 . . Part Schematics Acquired 5 | . . 1 1 3 . . Parts Damaged . | . . . . . . . Bothacking | -11 -10 -9 -8 -7 -7 -7 ------------ Run | Yrd Mat Mat Mat Fac Low Low Used RIF Installer . | . . . . . . . Robots Hacked . | . . . . . . . Non-combat . | . . . . . . . Combat . | . . . . . . . Robot Hacks Applied . | . . . . . . . Relay Couplers Released 3 | . . . . 3 . . Programmers 3 | . . . . 3 . . Fabnet Peak Effective % . | . . . . . . . Robots Rewired 1 | . . . . . 1 . Allies Hacked 1 | . . . . 1 . . Hacks Repelled . | . . . . . . . Allies | -11 -10 -9 -8 -7 -7 -7 -------- Run | Yrd Mat Mat Mat Fac Low Low Total Allies 4 | . . . . 3 1 . Largest Group 3 | . . . . 3 1 . Highest-Rated Group 93 | . . . . 93 16 . Highest-Rated Ally 31 | . . . . 31 16 . Total Orders . | . . . . . . . Ally Attacks 8 | . . . . 7 1 . Total Damage 114 | . . . . 97 17 . Kills 1 | . . . . 1 . . Allies Corrupted . | . . . . . . . Allies Melted . | . . . . . . . Intel | -11 -10 -9 -8 -7 -7 -7 ------- Run | Yrd Mat Mat Mat Fac Low Low Robot Analysis Total . | . . . . . . . Derelict Logs Recovered 2 | . . . . . 2 . Drone Launches . | . . . . . . . Drone Recoveries . | . . . . . . . Exploration | -11 -10 -9 -8 -7 -7 -7 ------------- Run | Yrd Mat Mat Mat Fac Low Low Turns Passed 12531 | 96 1184 1832 1921 5769 1700 29 Spaces Moved 7309 | 68 694 862 1082 3448 1142 13 Core 5 | 3 2 . . . . . Treads 1002 | 5 290 563 . . 131 13 Legs 5310 | 60 402 299 1082 3234 233 . Wheels 990 | . . . . 212 778 . Hover 2 | . . . . 2 . . Flight . | . . . . . . . Fastest Speed 50 | 50 120 120 112 100 100 225 Average Speed 135 | 119 142 168 118 131 134 225 Slowest Speed 380 | 160 200 260 190 380 270 225 Overloaded Moves . | . . . . . . . Propulsion Burnouts . | . . . . . . . Robots Hopped . | . . . . . . . Cave-ins Triggered . | . . . . . . . Exploration Rate (%) 56 | 5 87 74 71 66 92 2 Regions Visited 6 Branch Regions 2 Pre-discovered Areas . | . . . . . . . Known Exits Taken 3 | . 1 . . 1 1 . Unknown Exits Taken 3 | 1 . 1 1 . . . Scrap Searched 4 | . . . . . 4 . Spaces Dug . | . . . . . . . Terrain Destroyed 67 | . . 4 37 20 6 . Melee . | . . . . . . . Projectile 16 | . . . 7 3 6 . AOE 51 | . . 4 30 17 . . Terrain Rammed . | . . . . . . . Walls Destroyed . | . . . . . . . Machines Disabled . | . . . . . . . Actions | -11 -10 -9 -8 -7 -7 -7 --------- Run | Yrd Mat Mat Mat Fac Low Low Total 9201 | 79 805 1078 1555 4424 1247 13 Wait 1054 | . 30 53 275 672 24 . Move 7303 | 67 693 861 1081 3447 1141 13 Hop . | . . . . . . . Pick Up 93 | 4 12 13 27 29 8 . Fast Attach 61 | 7 7 9 10 22 6 . Attach 42 | . 3 8 11 11 9 . Detach 13 | 1 1 1 3 3 4 . Swap 64 | . 1 19 15 26 3 . Drop 109 | . 8 25 28 45 3 . Fire 420 | . 49 85 100 150 36 . Melee 3 | . . . 3 . . . Ram 15 | . . . . 7 8 . Kick 15 | . 1 . 2 12 . . Crush 4 | . . 4 . . . . Escape Stasis . | . . . . . . . Rewire 5 | . . . . . 5 . Trap . | . . . . . . . Miscellaneous . | . . . . . . . Route ------- -11/Scrapyard -10/Materials (discovered 5 exits: *Mat x3 / [*Min x2]) -9/Materials (discovered 5 exits: *Mat x2 / [*Min] / [*Sto x2]) -8/Materials (discovered 3 exits: *Fac x3) -7/Factory (discovered 4 exits: *Fac x2 / *Low x2) -7/Lower Caves -7/Lower Caves History --------- Turn | Location | Event 6 | -11/Scrapyard | Discovered new exit (range 15) 97 | -11/Scrapyard | Entered Materials 183 | -10/Materials | Discovered new exit (range 17) 309 | -10/Materials | Build established: Mutant 597 | -10/Materials | Discovered new exit (range 16) 908 | -10/Materials | Discovered new exit (range 13) 1129 | -10/Materials | Discovered new exit (range 4) 1144 | -10/Materials | Repaired Spread Laser? 1255 | -10/Materials | Identified exit to Materials 1281 | -10/Materials | Entered another Materials area 1281 | -9/Materials | Evolved 2 slots: Propulsion x1, Utility x1 1294 | -9/Materials | Discovered new exit (range 5) 1575 | -9/Materials | Discovered new exit (range 12) 1641 | -9/Materials | Lost 4 parts (3n1w) 2157 | -9/Materials | Discovered new exit (range 16) 2357 | -9/Materials | Build established: Scavenger-Mutant 2382 | -9/Materials | Central database locked down 2390 | -9/Materials | Discovered new exit (range 16) 2985 | -9/Materials | Discovered new exit (range 8) 3113 | -9/Materials | Entered another Materials area 3113 | -8/Materials | Evolved 2 slots: Propulsion x1, Weapon x1 3132 | -8/Materials | Garrison activated, responded to threat 3781 | -8/Materials | Discovered new exit (range 11) 4034 | -8/Materials | Core integrity fell below 50% 4226 | -8/Materials | Repaired Carbon-fiber Leg 4259 | -8/Materials | Repaired Spread Laser 4299 | -8/Materials | Repaired Carbon-fiber Leg 4313 | -8/Materials | First assault squad dispatched 4338 | -8/Materials | Repaired Hrd. Medium Armor Plating 4430 | -8/Materials | Discovered new exit (range 5) 4463 | -8/Materials | Core integrity fell below 20% 4492 | -8/Materials | Lost 3 parts (1u2w) 4736 | -8/Materials | Build established: Mutant 4899 | -8/Materials | Central database locked down 5029 | -8/Materials | Discovered new exit (range 5) 5034 | -8/Materials | Entered Factory 5034 | -7/Factory | Evolved 2 slots: Utility x2 5111 | -7/Factory | Discovered new exit (range 16) 5245 | -7/Factory | Identified exit to Factory 5347 | -7/Factory | Build established: Skirmisher 5372 | -7/Factory | Repaired Carbon-fiber Leg? 5427 | -7/Factory | Repaired Carbon-fiber Leg 5467 | -7/Factory | Repaired Hrd. Medium Armor Plating 5506 | -7/Factory | Repaired Carbon-fiber Leg 6483 | -7/Factory | Discovered new exit (range 3) 6486 | -7/Factory | Identified exit to Lower Caves 7246 | -7/Factory | Repaired Carbon-fiber Leg 7284 | -7/Factory | Repaired Carbon-fiber Leg 7324 | -7/Factory | Repaired Carbon-fiber Leg 8253 | -7/Factory | Discovered exit to Factory (range 14) 8660 | -7/Factory | Fabricated Hacking Suite (x1) 9304 | -7/Factory | Fabricated Imp. Sensor Array (x2) 9589 | -7/Factory | Allied Derelicts emerged from ambush trap array 9659 | -7/Factory | Lost 3 allies 9701 | -7/Factory | Lost 5 parts (1p1n1u2w) 9836 | -7/Factory | Build established: Mutant 10192 | -7/Factory | Discovered exit to Lower Caves (range 15) 10587 | -7/Factory | Core integrity fell below 50% 10634 | -7/Factory | First assault squad dispatched 10714 | -7/Factory | Repaired Hrd. Medium Armor Plating 10803 | -7/Factory | Entered Lower Caves 10898 | -7/Lower Caves | Build established: Skirmisher 10908 | -7/Lower Caves | Attracted the attention of an 0b10 outpost 10959 | -7/Lower Caves | System corruption reached 10% 10989 | -7/Lower Caves | Lost 3 parts (1p2u) 11130 | -7/Lower Caves | Encountered a Warlord checkpoint 11301 | -7/Lower Caves | Lost 3 allies 11761 | -7/Lower Caves | Core integrity fell below 20% 12048 | -7/Lower Caves | Lost 7 parts (1p2n2u2w) 12140 | -7/Lower Caves | Identified exit to Lower Caves 12190 | -7/Lower Caves | Learned 4 Factory zone layouts 12294 | -7/Lower Caves | Build established: Mutant 12503 | -7/Lower Caves | Entered another Lower Caves area 12506 | -7/Lower Caves | Spotted B-75 Beast 12532 | -7/Lower Caves | Destroyed by B-75 Beast with Magnetic Acceleration Cannon Last Messages --------------- 12222_ Acquired 19 matter. 12239_ VW09/JH /BK2DV69JKJG/X 12264_ System corrupted: Component data lost. 12297_ System corrupted: FCS attempts to trigger Mni. Assault Cannon. 12297_ System corrupted: Mni. Assault Cannon misfires. 12315_ System corrupted: Energy discharge (-57). 12336_ System corrupted: Matter fused (-5). 12351_ PGBUAX7NW 12387_ System corrupted: Component data lost. 12413_ System corrupted: Matter fused (-10). 12429_ System corrupted: Component data lost. 12447_ AXI QZ8&ED%#|HFRBXTMAQLWY 12483_ System corrupted: Matter fused (-10). LOCATION=LOWER CAVES GOAL=ESCAPE 12512_ System corrupted: Heat flow error (+189). 12532_ Critical hit (Meltdown: +320). Map ----- +----------------------------------------------------+ | | | | | | | | | | | | | | | | | | | ?????????????????????????????????????????????????? | | ?????????????????????????????????????????????????? | | ?????????????????????????????????????????????????? | | ?????????????????????????????????????????????????? | | ?????????????????????????????????????????????????? | | ?????????????????????????????????????????????????? | | ?????????????????????????????????????????????????? | | ?????????????????????????????????????????????????? | | ?????????????????????????????????????????????????? | | ?????????????????????????????????????????????????? | | ?????????????????????????????????????????????????? | | ????????????????????????????"#???????????????????? | | ???????????????????????????X #???????????????????? | | ????????????????????????### #???????????????????? | | ????????????????????????# ###?????????###??????? | | ?????????????????######## ###%##;##### ##?????? | | ?????????????????# % @ #?????? | | ?????????????????## ;;;; #?????? | | ?????????????????# #### ####;; ;; BB #?????? | | ???????????????????????# #????## #;; BB #?????? | | ???????????????????????# #?????###??? #?????? | | ???????????????????????# #?????????????????#?????? | | ???????????????????????# #???????????????????????? | | ???????????????????????# ???????????????????????? | | ???????????????????????###???????????????????????? | | ?????????????????????????????????????????????????? | | ?????????????????????????????????????????????????? | | ?????????????????????????????????????????????????? | | ?????????????????????????????????????????????????? | | ?????????????????????????????????????????????????? | | ?????????????????????????????????????????????????? | | ?????????????????????????????????????????????????? | | ?????????????????????????????????????????????????? | | ?????????????????????????????????????????????????? | | ?????????????????????????????????????????????????? | | ?????????????????????????????????????????????????? | | ?????????????????????????????????????????????????? | | ?????????????????????????????????????????????????? | | ?????????????????????????????????????????????????? | | ?????????????????????????????????????????????????? | | ?????????????????????????????????????????????????? | +----------------------------------------------------+ Best States ------------- Heat Dissipation 61 Coolant Potential 50 Energy Generation 17 Energy Capacity 490 Matter Stores 300 Matter Capacity 300 Sight Range 18 Robot Scan Range 15 Terrain Scan Density 110 Base Temperature (-) 100 Armor Coverage 225 Utility Shielding 66 Evasion (%) 55 Recoil Reduction 5 Offensive Hacking 10 Item Schematics ----------------- Imp. EM Shotgun | -9/Materials | Scanalyzed Imp. Aluminum Leg | -9/Materials | Hacked Adv. Targeting Computer | -8/Materials | Scanalyzed Hacking Suite | -8/Materials | Hacked Carbon-fiber Leg | -8/Materials | Hacked Imp. Terrain Scan Processor | -7/Factory | Scanalyzed Hardlight Generator | -7/Factory | Scanalyzed Cryofiber Web | -7/Factory | Scanalyzed Imp. Sensor Array | -7/Factory | Hacked Robot Schematics ------------------ None Fabricated ------------ Hacking Suite | x1 | -7/Factory Imp. Sensor Array | x2 | -7/Factory Alien Tech Used ----------------- None Achievements -------------- Gun Specialist Prolific Hacker Quantum Hacking Safety First Challenges ------------ None Game ------ Seed SubatomicPhaseSword Manual? 0 Play Time 02:14:56 Cumulative 29.6 hours Start 2024.08.24 @ 11:55:30 End 2024.08.24 @ 14:13:48 Sessions 1 Manual Loads 0 Difficulty Rogue Special Mode None Game No. 19 Rogue 19 Adventurer 0 Explorer 0 Win Type - Total 0 Types 0/0/0/0/0/0/0/0/0 Lore% 17 Gallery% 28 Achievement% 28 Wizard Run 0 Options --------- Layout 1 ASCII 0 Keyboard 1 Movement Vi Keybinds 0 Fullscreen 1 Font 24/Smallcaps Map View 50x35 Zoom Use 0% Tactical HUD 1 Map Filters NONE Filters NONE Steam 1 RUN: 014e1b21-5193-4ccb-9f82-7fbfe1ff99ea